bitfinex-derivatives/quotes_BTCF0:USTF0_20220102
["timestamp","ask_amount","ask_price","bid_price","bid_amount"]
[1641142893517,0.192,47920.0,47919.0,0.20304]
[1641142893719,0.009794,47921.0,47919.0,0.20304]
[1641142893918,0.009794,47921.0,47919.0,0.08304]
[1641142894119,0.06,47927.0,47919.0,0.20304]
[1641142894318,0.177,47921.0,47919.0,0.20304]
[1641142894719,0.177,47921.0,47919.0,0.34337567]
[1641142895121,0.177,47921.0,47919.0,0.22337567]
[1641142895721,0.009794,47923.0,47919.0,0.22337567]
[1641142895923,0.06,47927.0,47920.0,0.12]
[1641142896321,0.179,47923.0,47919.0,0.14033567]
[1641142897726,0.009794,47925.0,47919.0,0.14033567]
[1641142898122,0.02087268,47924.0,47919.0,0.14033567]
[1641142898321,0.02087268,47924.0,47920.0,0.12]
[1641142898524,0.02087268,47924.0,47923.0,0.12]
[1641142898922,0.02087268,47924.0,47919.0,0.14033567]
[1641142899123,0.02087268,47924.0,47923.0,0.0001]
[1641142899524,0.02087268,47924.0,47919.0,0.14043567]
[1641142900325,0.20187268,47924.0,47919.0,0.14043567]
[1641142900925,0.1799,47922.0,47919.0,0.14043567]
[1641142901127,0.1799,47922.0,47919.0,0.14033567]
[1641142901324,0.20187268,47924.0,47919.0,0.14043567]
[1641142901528,0.20187268,47924.0,47919.0,0.14033567]
[1641142901726,0.02087268,47924.0,47919.0,0.14033567]
[1641142902127,0.1799,47922.0,47919.0,0.14033567]
[1641142902427,0.21287268,47924.0,47919.0,0.14033567]
[1641142902628,0.1799,47922.0,47919.0,0.14033567]
[1641142902830,0.21287268,47924.0,47921.0,0.0001]
[1641142903028,0.1799,47922.0,47919.0,0.14033567]
[1641142903228,0.21287268,47924.0,47919.0,0.14033567]
[1641142903828,0.02087268,47924.0,47919.0,0.14033567]
[1641142904431,0.21387268,47924.0,47919.0,0.14033567]
[1641142904831,0.21387268,47924.0,47921.0,0.0001]
[1641142905031,0.21387268,47924.0,47920.0,0.0001]
[1641142905237,0.21387268,47924.0,47923.0,0.0001]
[1641142905632,0.02087268,47924.0,47923.0,0.0001]
[1641142905836,0.20077268,47924.0,47919.0,0.14033567]
[1641142906334,0.39177268,47924.0,47919.0,0.14033567]
[1641142906532,0.02087465,47920.0,47919.0,0.14033567]
[1641142907234,0.191,47924.0,47919.0,0.14033567]
[1641142907435,0.14033567,47940.0,47923.0,1.2851]
[1641142907635,0.14033567,47940.0,47939.0,0.0001]
[1641142907836,0.14033567,47940.0,47939.0,0.07171]
[1641142908443,0.1799,47949.0,47939.0,0.26471]
[1641142908635,0.02086224,47948.0,47939.0,0.26471]
[1641142908845,0.1054,47956.0,47946.0,0.14033567]
[1641142908846,0.24573567,47956.0,47946.0,0.14033567]
[1641142909037,0.24573567,47956.0,47951.0,0.0001]
[1641142909236,0.24573567,47956.0,47951.0,0.06523]
[1641142909436,0.1054,47956.0,47951.0,0.06523]
[1641142909837,0.14033567,47961.0,47952.0,0.05463582]
[1641142910236,0.16119258,47961.0,47951.0,0.06523]
[1641142910436,0.14033567,47961.0,47952.0,0.19]
[1641142910839,0.14033567,47961.0,47953.0,0.14033567]
[1641142911737,0.1799,47960.0,47953.0,0.14033567]
[1641142911942,0.1799,47960.0,47946.0,0.14043567]
[1641142912136,0.07024,47956.0,47946.0,0.14033567]
[1641142912337,0.07024,47956.0,47953.0,0.19]
[1641142912538,0.23065863,47954.0,47925.0,0.02086463]
[1641142912737,0.18,47942.0,47922.0,0.32863737]
[1641142912937,0.14033567,47937.0,47932.0,0.18]
[1641142913140,0.14033567,47937.0,47934.0,1.31378214]
[1641142914340,0.32633567,47937.0,47934.0,1.31378214]
[1641142914941,0.32633567,47937.0,47933.0,1.31378214]
[1641142915142,0.20086839,47934.0,47933.0,1.31378214]
[1641142915341,0.20086839,47934.0,47933.0,0.16529414]
[1641142915543,0.20086839,47934.0,47926.0,1.43019238]
[1641142915544,0.181,47934.0,47916.0,1.18594076]
[1641142915742,0.18,47923.0,47916.0,1.18594076]
[1641142915944,0.02087446,47920.0,47916.0,1.18594076]
[1641142916344,0.02087446,47920.0,47915.0,3.4204155]
[1641142916559,0.29634342,47923.0,47915.0,3.4204155]
[1641142916945,0.14033567,47916.0,47915.0,3.4204155]
[1641142917345,0.14033567,47916.0,47915.0,0.81134583]
[1641142918045,0.14033567,47916.0,47915.0,2.10613983]
[1641142918246,0.14033567,47921.0,47915.0,2.10613983]
[1641142918446,0.14033567,47921.0,47920.0,1.285]
[1641142919051,0.14033567,47934.0,47920.0,0.009794]
[1641142919347,0.18,47932.0,47920.0,0.009794]
[1641142919546,0.07367,47932.0,47920.0,0.009794]
[1641142919748,0.09453916,47932.0,47922.0,0.18]
[1641142919946,0.09453916,47932.0,47920.0,0.009794]
[1641142920147,0.07367,47932.0,47920.0,0.009794]
[1641142920348,0.26667,47932.0,47920.0,0.009794]
[1641142921750,0.07367,47932.0,47915.0,2.01815551]
[1641142921947,0.07367,47932.0,47915.0,2.02794951]
[1641142922150,0.06,47926.0,47915.0,2.02794951]
[1641142922347,0.18,47926.0,47915.0,2.00708059]
[1641142922547,0.02087119,47928.0,47915.0,2.00708059]
[1641142922748,0.02087119,47928.0,47915.0,0.82113983]
[1641142922949,0.14033567,47920.0,47915.0,0.82113983]
[1641142924349,0.33233567,47920.0,47915.0,0.82113983]
[1641142925749,0.14033567,47920.0,47915.0,0.82113983]
[1641142926450,0.33333567,47920.0,47915.0,0.82113983]
[1641142927250,0.18,47919.0,47915.0,0.81134583]
[1641142928051,0.02087575,47917.0,47915.0,0.81134583]
[1641142928251,0.001,47916.0,47915.0,0.81134583]
[1641142928451,0.02087575,47917.0,47915.0,0.81134583]
[1641142928853,0.14033567,47916.0,47915.0,0.81134583]
[1641142929251,0.19,47919.0,47915.0,1.00113983]
[1641142929455,5.73825844,47948.0,47919.0,1.105]
[1641142929456,0.18,47941.0,47919.0,1.105]
[1641142929653,0.18,47941.0,47928.0,0.18]
[1641142929852,1.54003157,47936.0,47928.0,0.18]
[1641142930054,1.54003157,47936.0,47927.0,0.009794]
[1641142930454,0.02086903,47933.0,47928.0,0.191]
[1641142930852,0.02086903,47933.0,47932.0,0.14033567]
[1641142931253,1.54003157,47936.0,47932.0,0.14033567]
[1641142931454,0.18,47940.0,47932.0,0.14033567]
[1641142932453,0.18,47940.0,47932.0,0.33033567]
[1641142933254,0.18,47941.0,47932.0,0.33033567]
[1641142933654,0.18,47941.0,47932.0,0.14033567]
[1641142933856,0.18,47934.0,47932.0,0.14033567]
[1641142934254,0.02186962,47933.0,47932.0,0.14033567]
[1641142934455,0.02186962,47933.0,47928.0,0.14033567]
[1641142934659,0.181,47929.0,47928.0,0.14033567]
[1641142935859,0.001,47929.0,47919.0,0.33111151]
[1641142936060,0.20086962,47933.0,47919.0,0.33111151]
[1641142936262,0.18,47930.0,47919.0,0.33111151]
[1641142936461,0.18,47930.0,47917.0,0.56164651]
[1641142936462,0.02087318,47923.0,47917.0,0.009794]
[1641142937264,0.14033567,47927.0,47921.0,0.33111151]
[1641142937863,0.02087267,47924.0,47921.0,0.33111151]
[1641142938463,0.02087267,47924.0,47919.0,0.55185251]
[1641142938464,0.02087425,47922.0,47919.0,0.55185251]
[1641142938662,0.20087568,47920.0,47919.0,0.55185251]
[1641142938863,0.18,47920.0,47919.0,0.55185251]
[1641142939075,0.44383,47924.0,47919.0,0.55185251]
[1641142939284,0.2008765,47920.0,47916.0,0.14033567]
[1641142939476,0.0208765,47920.0,47916.0,0.14033567]
[1641142940278,1.4235231,47919.0,47916.0,0.14033567]
[1641142941180,1.8153996,47920.0,47916.0,0.14033567]
[1641142941381,0.001,47917.0,47916.0,0.14033567]
[1641142941581,0.181,47917.0,47916.0,0.14033567]
[1641142941781,0.001,47917.0,47916.0,0.14033567]
[1641142941984,0.181,47917.0,47916.0,0.14033567]
[1641142942183,1.6243996,47920.0,47916.0,0.14033567]
[1641142942387,0.191,47917.0,47916.0,0.14033567]
[1641142943283,0.372,47917.0,47916.0,0.14033567]
[1641142943783,1.4235231,47919.0,47916.0,0.14033567]
[1641142944383,1.6135231,47919.0,47916.0,0.14033567]
[1641142945484,0.19,47919.0,47916.0,0.14033567]
[1641142945685,0.0208765,47920.0,47916.0,0.14033567]
[1641142946283,0.2098765,47920.0,47916.0,0.14033567]
[1641142946484,1.6333996,47920.0,47916.0,0.14033567]
[1641142947284,0.18,47917.0,47916.0,0.14033567]
[1641142948485,0.372,47917.0,47916.0,0.14033567]
[1641142949787,0.20087779,47917.0,47916.0,0.14033567]
[1641142950389,0.38987779,47917.0,47916.0,0.14033567]
[1641142951388,1.81340089,47917.0,47916.0,0.14033567]
[1641142951791,1.62440089,47917.0,47916.0,0.14033567]
[1641142952388,0.39087779,47917.0,47916.0,0.14033567]
[1641142953591,0.20087779,47917.0,47916.0,0.14033567]
[1641142953790,0.20087779,47917.0,47912.0,0.47282541]
[1641142954392,1.81340089,47917.0,47912.0,0.14033567]
[1641142955293,0.38987779,47917.0,47912.0,0.14033567]
[1641142955692,0.20087779,47917.0,47912.0,0.14033567]
[1641142956394,0.39187779,47917.0,47912.0,0.14033567]
[1641142956593,0.0208785,47913.0,47912.0,0.14033567]
[1641142958096,1.7945231,47917.0,47912.0,0.14033567]
[1641142958394,0.21187954,47913.0,47912.0,0.14033567]
[1641142959395,0.21287954,47913.0,47912.0,0.14033567]
[1641142959594,0.21187954,47913.0,47912.0,0.14033567]
[1641142959796,0.02087954,47913.0,47912.0,0.14033567]
[1641142960297,0.21187954,47913.0,47912.0,0.14033567]
[1641142961797,0.02087954,47913.0,47912.0,0.14033567]
[1641142962398,0.21187954,47913.0,47912.0,0.14033567]
[1641142963700,0.02087954,47913.0,47912.0,0.14033567]
[1641142964400,0.20987954,47913.0,47912.0,0.14033567]
[1641142965803,0.02087954,47913.0,47912.0,0.14033567]
[1641142966501,0.38887954,47913.0,47912.0,0.14033567]
[1641142967300,0.38988141,47913.0,47912.0,0.14033567]
[1641142967701,0.20188141,47913.0,47912.0,0.14033567]
[1641142967903,0.20188141,47913.0,47908.0,0.33248974]
[1641142968104,0.001,47909.0,47908.0,0.33248974]
[1641142968303,0.02088141,47913.0,47905.0,0.33248974]
[1641142968506,0.18,47910.0,47905.0,0.33248974]
[1641142968903,0.20788141,47913.0,47905.0,0.33248974]
[1641142969104,0.14033567,47911.0,47905.0,0.33248974]
[1641142969504,1.5642852,47911.0,47905.0,0.33248974]
[1641142969915,1.5642852,47911.0,47907.0,0.18]
[1641142970109,1.54003157,47918.0,47910.0,0.18]
[1641142970308,1.40305722,47912.0,47908.0,1.114794]
[1641142970505,1.54259077,47919.0,47911.0,0.18]
[1641142970707,1.03172712,47919.0,47918.0,0.18]
[1641142970905,0.64412712,47919.0,47918.0,0.25034]
[1641142971109,0.0319,47953.0,47918.0,0.25034]
[1641142971110,1.8097,47942.0,47918.0,1.77634701]
[1641142971311,1.63825148,47929.0,47928.0,0.18]
[1641142971508,1.66082815,47943.0,47928.0,1.35255]
[1641142971706,1.66082815,47943.0,47939.0,0.18]
[1641142971907,1.66082815,47943.0,47942.0,0.18]
[1641142972108,1.66082815,47943.0,47939.0,0.05681]
[1641142972508,1.77482815,47943.0,47942.0,0.19]
[1641142972708,0.114,47943.0,47942.0,0.19]
[1641142973508,0.13486433,47943.0,47942.0,0.19]
[1641142973712,0.02086433,47943.0,47936.0,0.14033567]
[1641142973909,0.02086433,47943.0,47935.0,0.33561266]
[1641142974108,0.02086691,47938.0,47935.0,0.33561266]
[1641142974309,0.02086691,47938.0,47936.0,0.189]
[1641142975609,0.02086691,47938.0,47930.0,0.14033567]
[1641142976410,0.02086691,47938.0,47930.0,0.33133567]
[1641142976609,0.02086976,47931.0,47930.0,0.191]
[1641142976810,0.27729976,47931.0,47930.0,0.191]
[1641142977010,0.27829976,47931.0,47930.0,0.191]
[1641142977210,0.41863543,47931.0,47930.0,0.191]
[1641142977410,0.41863543,47931.0,47928.0,0.33561266]
[1641142977611,0.181,47929.0,47928.0,0.33561266]
[1641142978011,0.181,47929.0,47923.0,0.33561266]
[1641142978211,0.18,47929.0,47923.0,0.33561266]
[1641142978410,0.367,47929.0,47923.0,0.33561266]
[1641142978610,0.187,47929.0,47923.0,0.33561266]
[1641142979210,0.18,47926.0,47921.0,0.55935444]
[1641142979411,0.02087434,47924.0,47920.0,0.14033567]
[1641142979611,0.02087434,47924.0,47919.0,0.33561266]
[1641142979813,0.02087355,47922.0,47919.0,0.33561266]
[1641142980413,0.191,47922.0,47919.0,0.33561266]
[1641142981014,0.191,47922.0,47920.0,0.33561266]
[1641142981214,0.02087538,47921.0,47920.0,0.33561266]
[1641142981815,0.20187538,47921.0,47918.0,0.33561266]
[1641142982016,0.02087538,47921.0,47918.0,0.51561266]
[1641142982417,0.188,47921.0,47918.0,0.51561266]
[1641142982615,0.188,47921.0,47919.0,0.33561266]
[1641142983314,0.28067134,47939.0,47920.0,0.009794]
[1641142983516,0.28067134,47939.0,47933.0,0.18]
[1641142983815,0.12,47949.0,47933.0,0.2509]
[1641142984020,0.02086391,47944.0,47933.0,0.2509]
[1641142984216,0.02086391,47944.0,47939.0,0.18]
[1641142984916,0.119,47949.0,47939.0,0.18]
[1641142985116,0.119,47949.0,47940.0,0.18]
[1641142985317,0.14033567,47948.0,47940.0,0.18]
[1641142985716,0.16119822,47948.0,47942.0,0.18]
[1641142985917,0.16119822,47948.0,47938.0,0.14033567]
[1641142986416,0.28319822,47948.0,47938.0,0.33033567]
[1641142986816,0.26233567,47948.0,47938.0,0.33033567]
[1641142987834,0.02086365,47945.0,47938.0,0.14033567]
[1641142988034,0.18,47946.0,47938.0,0.14033567]
[1641142988234,0.18,47940.0,47938.0,0.14033567]
[1641142988433,0.02086775,47939.0,47938.0,0.33133567]
[1641142989735,0.02086775,47939.0,47938.0,0.14033567]
[1641142989934,0.18,47939.0,47938.0,0.14033567]
[1641142990133,0.09375,47945.0,47938.0,0.14033567]
[1641142990334,0.02086637,47939.0,47938.0,0.14033567]
[1641142990535,0.20086637,47939.0,47938.0,0.32333567]
[1641142991536,0.18,47939.0,47938.0,0.32333567]
[1641142991738,0.18,47939.0,47938.0,0.14033567]
[1641142991937,0.02086484,47942.0,47938.0,0.32033567]
[1641142992136,0.02086484,47942.0,47939.0,0.18]
[1641142993138,0.02086484,47942.0,47938.0,0.33133567]
[1641142993338,0.02086484,47942.0,47939.0,0.18]
[1641142993739,0.02086484,47942.0,47938.0,0.33133567]
[1641142993938,0.02086484,47942.0,47939.0,0.18]
[1641142994539,0.02086484,47942.0,47939.0,0.371]
[1641142995140,0.02086484,47942.0,47939.0,0.191]
[1641142995340,0.02086313,47946.0,47939.0,0.191]
[1641142995941,0.02086313,47946.0,47938.0,0.14033567]
[1641142996641,0.16386313,47946.0,47938.0,0.33033567]
[1641142997040,0.143,47946.0,47945.0,0.18]
[1641142997241,0.02,47954.0,47945.0,0.41120567]
[1641142997441,0.02,47954.0,47946.0,0.009794]
[1641142997642,0.02,47954.0,47946.0,0.189794]
[1641142998042,0.02,47954.0,47946.0,0.009794]
[1641142998443,0.02086107,47951.0,47945.0,0.14033567]
[1641142998642,0.02086107,47951.0,47946.0,0.196]
[1641142998842,0.02086107,47951.0,47948.0,0.18]
[1641142999046,0.02,47954.0,47946.0,0.196]
[1641142999243,0.02,47954.0,47953.0,0.14033567]
[1641142999647,0.02085757,47959.0,47953.0,0.41632967]
[1641142999848,0.028,48002.0,47958.0,0.18]
[1641142999849,0.02085299,47970.0,47958.0,0.18]
[1641143000047,1.9532,47981.0,47965.0,0.18]
[1641143000246,0.12815442,47976.0,47965.0,0.08198]
[1641143000449,0.00815442,47966.0,47943.0,0.14033567]
[1641143000649,0.12815442,47946.0,47933.0,0.36525309]
[1641143000849,0.12815442,47934.0,47933.0,0.36525309]
[1641143001048,0.18944442,47934.0,47933.0,0.36525309]
[1641143001351,0.48229701,47934.0,47917.0,0.05184558]
[1641143001550,0.48229701,47934.0,47926.0,1.3444577]
[1641143001551,0.12815442,47930.0,47926.0,1.3444577]
[1641143001749,0.48229701,47934.0,47929.0,0.019]
[1641143001955,0.48229701,47934.0,47931.0,0.05184558]
[1641143002553,0.12815442,47932.0,47931.0,0.146]
[1641143003050,0.65529701,47934.0,47931.0,0.146]
[1641143003256,0.78345143,47934.0,47931.0,0.146]
[1641143003851,0.78345143,47934.0,47929.0,0.019]
[1641143003852,0.48229701,47934.0,47929.0,0.019]
[1641143004050,0.48229701,47934.0,47929.0,0.07084558]
[1641143004753,0.65829701,47934.0,47929.0,0.18584558]
[1641143005355,0.65829701,47934.0,47933.0,0.05184558]
[1641143005558,0.65829701,47934.0,47929.0,0.18584558]
[1641143005559,0.65929701,47934.0,47929.0,0.18584558]
[1641143005758,0.65829701,47934.0,47929.0,0.134]
[1641143006157,0.65829701,47934.0,47930.0,0.05184558]
[1641143006358,0.48229701,47934.0,47929.0,0.019]
[1641143006561,0.64129701,47934.0,47929.0,0.18]
[1641143006961,0.64129701,47934.0,47931.0,0.05184558]
[1641143007160,0.65109101,47934.0,47931.0,0.07229]
[1641143007359,0.64129701,47934.0,47931.0,0.07229]
[1641143007761,0.48229701,47934.0,47931.0,0.07229]
[1641143007960,0.12815442,47932.0,47931.0,0.07229]
[1641143008160,0.12815442,47932.0,47929.0,0.019]
[1641143008161,0.1490254,47932.0,47929.0,0.019]
[1641143008361,0.02087098,47932.0,47929.0,0.019]
[1641143008561,0.20287098,47932.0,47931.0,0.147]
[1641143009763,0.20307964,47932.0,47931.0,0.147]
[1641143009961,0.12815442,47932.0,47919.0,0.05184558]
[1641143010160,0.12815442,47932.0,47910.0,0.3397]
[1641143010161,0.1490318,47920.0,47910.0,0.3397]
[1641143010361,0.10986738,47920.0,47914.0,0.05184558]
[1641143010661,0.10986738,47920.0,47919.0,0.05184558]
[1641143011062,0.10986738,47920.0,47916.0,0.05184558]
[1641143011465,0.14033567,47917.0,47911.0,0.009794]
[1641143011763,0.14033567,47917.0,47916.0,0.05184558]
[1641143012362,0.14033567,47917.0,47916.0,0.06163958]
[1641143012563,0.30233567,47917.0,47916.0,0.24063958]
[1641143013464,0.30233567,47917.0,47916.0,0.188794]
[1641143013870,0.14033567,47917.0,47914.0,0.05184558]
[1641143014089,0.14033567,47917.0,47910.0,0.3397]
[1641143014491,0.02087766,47914.0,47910.0,0.3397]
[1641143014697,0.02087766,47914.0,47910.0,0.5227]
[1641143015185,0.02087766,47914.0,47913.0,0.05184558]
[1641143015785,0.30333567,47917.0,47913.0,0.23184558]
[1641143015986,0.14033567,47917.0,47916.0,0.05184558]
[1641143016587,0.31633567,47917.0,47916.0,0.23084558]
[1641143016887,0.31633567,47917.0,47916.0,0.179]
[1641143018087,0.14033567,47917.0,47915.0,0.05184558]
[1641143018689,0.30433567,47917.0,47915.0,0.22984558]
[1641143018889,0.164,47917.0,47916.0,0.189794]
[1641143019089,1.9979,47931.0,47916.0,0.280574]
[1641143019293,1.9979,47931.0,47923.0,0.18]
[1641143019491,0.009794,47931.0,47930.0,0.05184558]
[1641143019790,0.03066415,47931.0,47920.0,0.14033567]
[1641143019990,0.18,47921.0,47903.0,0.71282499]
[1641143020189,0.009794,47920.0,47911.0,0.33664965]
[1641143020390,0.18,47912.0,47911.0,0.33664965]
[1641143020591,1.105,47919.0,47911.0,0.33664965]
[1641143020789,0.189794,47912.0,47911.0,0.33664965]
[1641143021194,1.234384,47912.0,47911.0,0.33664965]
[1641143021390,1.65539101,47912.0,47911.0,0.33664965]
[1641143021994,1.65539101,47912.0,47910.0,0.56108275]
[1641143022192,0.001,47911.0,47903.0,0.174]
[1641143022394,0.12,47910.0,47903.0,0.174]
[1641143022591,0.12,47910.0,47893.0,0.33664965]
[1641143022791,0.18,47906.0,47893.0,0.33664965]
[1641143022991,0.02088292,47901.0,47893.0,0.33664965]
[1641143023193,0.18,47911.0,47892.0,0.009794]
[1641143023194,0.0208843,47898.0,47892.0,0.009794]
[1641143023394,0.14033567,47893.0,47892.0,0.009794]
[1641143023798,0.1612225,47893.0,47892.0,0.009794]
[1641143024199,0.14033567,47893.0,47892.0,0.009794]
[1641143024692,0.14033567,47893.0,47892.0,0.208794]
[1641143025895,0.14033567,47893.0,47890.0,0.33664965]
[1641143026694,0.2321525,47893.0,47890.0,0.53464965]
[1641143026995,0.02088843,47891.0,47890.0,0.53464965]
[1641143027397,0.22844515,47891.0,47890.0,0.198]
[1641143027995,0.22844515,47891.0,47888.0,0.56108275]
[1641143028194,0.18,47890.0,47888.0,1e-08]
[1641143028396,0.009794,47889.0,47888.0,1e-08]
[1641143028594,0.21068566,47889.0,47877.0,0.33964413]
[1641143028994,0.18,47886.0,47877.0,0.33964413]
[1641143029394,0.28067134,47880.0,47877.0,0.33964413]
[1641143029594,0.35036134,47880.0,47877.0,0.33964413]
[1641143029795,0.37125513,47880.0,47865.0,0.18]
[1641143029997,0.37125513,47880.0,47869.0,0.79361007]
[1641143030195,0.37125747,47880.0,47869.0,0.79361007]
[1641143030394,0.02089673,47870.0,47869.0,0.79361007]
[1641143030594,0.09496673,47870.0,47869.0,0.79361007]
[1641143030997,0.09496673,47870.0,47865.0,0.79361007]
[1641143031395,0.14033567,47869.0,47865.0,0.79361007]
[1641143032095,0.14033567,47869.0,47861.0,0.94373974]
[1641143032696,0.14033567,47869.0,47861.0,1.13773974]
[1641143032895,0.14033567,47869.0,47863.0,0.18]
[1641143033897,0.14033567,47869.0,47863.0,0.97361007]
[1641143034697,0.14033567,47869.0,47863.0,1.16861007]
[1641143035300,0.14033567,47869.0,47865.0,0.18]
[1641143035502,0.13933567,47869.0,47863.0,0.195]
[1641143036002,0.13933567,47869.0,47865.0,0.18]
[1641143036202,0.13933567,47869.0,47862.0,0.18]
[1641143036203,0.009794,47868.0,47862.0,0.18]
[1641143036602,0.009794,47868.0,47865.0,0.194]
[1641143037504,0.14033567,47866.0,47865.0,0.194]
[1641143037903,0.14033567,47866.0,47862.0,0.18]
[1641143038102,0.14033567,47866.0,47865.0,0.18]
[1641143038303,0.14033567,47866.0,47862.0,0.18]
[1641143038503,0.14033567,47866.0,47865.0,0.18]
[1641143038706,0.23561268,47870.0,47865.0,0.376]
[1641143038906,0.23561268,47870.0,47869.0,0.18]
[1641143039105,1.268e-05,47870.0,47869.0,0.18]
[1641143039305,1.42080113,47874.0,47869.0,0.190794]
[1641143039505,1.42080113,47874.0,47873.0,0.18]
[1641143040506,0.14033567,47880.0,47873.0,0.18]
[1641143040705,0.14033567,47880.0,47873.0,0.375]
[1641143041808,0.1612282,47880.0,47873.0,0.195]
[1641143042009,0.009794,47879.0,47872.0,0.14033567]
[1641143042309,0.02089474,47875.0,47872.0,0.14033567]
[1641143042714,0.02089474,47875.0,47872.0,0.33533567]
[1641143043911,0.14033567,47880.0,47873.0,0.18]
[1641143044112,0.02089282,47879.0,47877.0,0.12]
[1641143044813,0.02089282,47879.0,47877.0,0.193]
[1641143046019,0.02089282,47879.0,47875.0,0.18]
[1641143046415,0.02089282,47879.0,47874.0,0.009794]
[1641143046614,0.02089282,47879.0,47875.0,0.195]
[1641143046816,0.02089282,47879.0,47875.0,0.375]
[1641143047836,0.09086,47882.0,47875.0,0.195]
[1641143048618,0.09086,47882.0,47875.0,0.389]
[1641143049518,0.23119567,47882.0,47875.0,0.389]
[1641143050217,0.23119567,47882.0,47872.0,0.14033567]
[1641143050417,0.02089282,47879.0,47874.0,0.18]
[1641143050620,0.02089282,47879.0,47875.0,0.195]
[1641143050919,0.14033567,47882.0,47878.0,0.18]
[1641143051120,0.14033567,47882.0,47879.0,0.009794]
[1641143051718,0.14033567,47882.0,47881.0,0.18]
[1641143052724,0.14033567,47882.0,47881.0,0.373]
[1641143053320,0.14033567,47882.0,47881.0,0.193]
[1641143053920,0.16122725,47882.0,47864.0,0.02089158]
[1641143054122,0.02089308,47879.0,47865.0,0.5197]
[1641143054319,0.25072725,47882.0,47878.0,0.18]
[1641143054519,0.25072725,47882.0,47865.0,0.349494]
[1641143054819,0.02089506,47874.0,47867.0,0.51533567]
[1641143055020,0.22983567,47882.0,47867.0,0.51533567]
[1641143055337,0.02089287,47879.0,47867.0,0.51533567]
[1641143055537,0.14033567,47873.0,47867.0,0.375]
[1641143055940,0.14033567,47873.0,47867.0,0.195]
[1641143056141,0.14033567,47873.0,47865.0,0.349494]
[1641143056540,0.14033567,47873.0,47865.0,0.189794]
[1641143056752,0.14033567,47873.0,47865.0,0.384794]
[1641143057041,0.14033567,47873.0,47865.0,0.204794]
[1641143057240,0.14033567,47873.0,47865.0,0.384794]
[1641143057440,0.14033567,47873.0,47871.0,0.18]
[1641143058544,0.14033567,47873.0,47870.0,1.35068965]
[1641143058743,0.14033567,47873.0,47871.0,0.195]
[1641143060542,0.02089607,47872.0,47870.0,1.35068965]
[1641143060746,0.08250607,47872.0,47871.0,0.193]
[1641143061543,0.22284174,47872.0,47871.0,0.0001]
[1641143061743,0.22284174,47872.0,47861.0,1.46324713]
[1641143061944,0.12,47866.0,47861.0,1.46324713]
[1641143062146,0.12,47870.0,47856.0,1.46324713]
[1641143062344,0.18,47866.0,47856.0,1.46324713]
[1641143062544,0.12,47866.0,47856.0,1.46324713]
[1641143062747,0.12,47866.0,47856.0,1.64524713]
[1641143062944,0.358,47870.0,47856.0,1.64524713]
[1641143063144,0.178,47870.0,47856.0,1.64524713]
[1641143063547,0.14033567,47864.0,47860.0,0.12]
[1641143063745,0.14033567,47864.0,47862.0,0.06]
[1641143063946,0.14033567,47864.0,47863.0,0.18]
[1641143064445,0.14033567,47864.0,47860.0,0.096154]
[1641143064848,0.14033567,47864.0,47863.0,0.186]
[1641143065545,0.18,47870.0,47863.0,0.186]
[1641143066150,0.18,47870.0,47860.0,0.009794]
[1641143066547,0.18,47866.0,47860.0,0.009794]
[1641143066746,0.18,47866.0,47860.0,0.186794]
[1641143066947,0.172,47870.0,47860.0,0.186794]
[1641143067547,0.14033567,47866.0,47860.0,0.186794]
[1641143068150,0.14089897,47865.0,47860.0,0.009794]
[1641143068355,0.02089897,47865.0,47859.0,1.37474696]
[1641143068753,0.20189897,47865.0,47860.0,0.176]
[1641143070253,0.02089897,47865.0,47858.0,1.51508263]
[1641143070652,0.02089897,47865.0,47861.0,0.18]
[1641143070852,1.43995283,47872.0,47861.0,0.26077]
[1641143071053,1.43995283,47872.0,47866.0,0.18]
[1641143071261,1.29961716,47872.0,47869.0,0.18]
[1641143071452,1.29961716,47872.0,47868.0,0.02089]
[1641143071653,1.29961716,47872.0,47868.0,0.16122567]
[1641143071860,1.29961716,47875.0,47868.0,0.16122567]
[1641143072454,0.02089636,47871.0,47868.0,0.14033567]
[1641143072654,0.09618636,47871.0,47868.0,0.14033567]
[1641143072865,0.09618636,47871.0,47868.0,0.31333567]
[1641143073255,0.20089914,47869.0,47868.0,0.31333567]
[1641143073456,0.02089914,47869.0,47868.0,0.31333567]
[1641143073656,0.02089914,47869.0,47868.0,0.173]
[1641143073859,0.09618642,47871.0,47868.0,0.173]
[1641143074055,0.09618642,47871.0,47864.0,1.37474696]
[1641143074256,0.09618642,47871.0,47870.0,0.34231975]
[1641143074257,1.37490716,47871.0,47870.0,0.34231975]
[1641143074858,1.56690716,47871.0,47870.0,0.34231975]
[1641143075256,1.58780405,47871.0,47870.0,0.34231975]
[1641143075458,1.56690716,47871.0,47870.0,0.34231975]
[1641143075658,1.58780474,47871.0,47870.0,0.34231975]
[1641143076056,1.39580474,47871.0,47870.0,0.34231975]
[1641143076857,1.57780474,47871.0,47870.0,0.132]
[1641143077062,0.27818758,47871.0,47870.0,0.70253292]
[1641143077457,0.45818758,47871.0,47870.0,0.70253292]
[1641143077658,0.45818801,47871.0,47870.0,0.70253292]
[1641143078059,1.57580517,47871.0,47870.0,0.34161623]
[1641143078859,0.28818801,47871.0,47870.0,0.34161623]
[1641143079061,0.28818801,47871.0,47869.0,0.34161623]
[1641143079560,0.14033567,47870.0,47869.0,0.34161623]
[1641143079757,0.32033567,47870.0,47869.0,0.34161623]
[1641143080159,0.14033567,47870.0,47868.0,0.57053292]
[1641143080360,0.18,47869.0,47868.0,0.57053292]
[1641143080560,0.14033567,47870.0,47868.0,0.57053292]
[1641143080759,0.26733567,47870.0,47868.0,0.70753292]
[1641143081566,0.26733567,47870.0,47868.0,0.137]
[1641143082064,0.14033567,47870.0,47858.0,0.14033567]
[1641143082662,0.14033567,47870.0,47859.0,0.12]
[1641143082863,0.31033567,47870.0,47858.0,0.31433567]
[1641143083265,0.12,47863.0,47858.0,0.31433567]
[1641143083565,0.20090154,47859.0,47858.0,0.174]
[1641143083764,0.26063154,47859.0,47858.0,0.174]
[1641143084166,0.26063154,47859.0,47856.0,0.57053292]
[1641143084364,0.23973,47859.0,47856.0,0.57053292]